{"text_format":"3","workbook":"xlsx","n_sheets":4,"sheets":["Tarjouslomake","Kaaviotiedot","Kustannusten erittely","Tarjouskustannusten yhteenveto"],"not_rendered":{"charts":1,"images":2,"defined_names":11},"read":"whole","date_system":"1900"}

{"sheet":"Tarjouslomake","index":0,"n_rows":21,"n_cols":6,"rows_kept":21,"merged":[[0,1,0,4],[1,1,1,2],[7,1,8,1],[7,2,8,2],[10,1,10,5],[12,1,12,5],[14,1,14,5],[15,1,15,2],[15,4,15,5],[16,1,16,2],[16,4,16,5],[18,1,18,5],[19,1,19,2],[19,4,19,5],[20,1,20,2],[20,4,20,5]]}
[null,"Rakennustöiden tarjouslomake"]
[null,"Omistajan tiedot",null,null,"Urakoitsijan tiedot"]
[null,"Nimi","Kirjoita omistajan nimi tähän soluun",null,"Yritys","Kirjoita urakoitsijan yrityksen nimi tähän soluun"]
[null,"Osoite","Kirjoita omistajan osoite tähän soluun",null,"Nimi","Kirjoita urakoitsijan nimi tähän soluun"]
[null,"Postinumero, postitoimipaikka","Kirjoita postinumero ja postitoimipaikka tähän soluun",null,"Osoite","Kirjoita urakoitsijan osoite tähän soluun"]
[null,"Puhelin","Kirjoita omistajan puhelinnumero tähän soluun",null,"Postinumero, postitoimipaikka","Kirjoita urakoitsijan kaupunki ja postinumero tähän soluun"]
[null,"Sähköposti","Kirjoita omistajan sähköpostiosoite tähän soluun",null,"Puhelin","Kirjoita urakoitsijan puhelinnumero tähän soluun"]
[null,"Projektin nimi","Kirjoita projektin nimi tähän soluun",null,"Sähköposti","Kirjoita urakoitsijan sähköpostiosoite tähän soluun "]
[{"$nulls":4},"Valmistumispäivämäärä","Kirjoita valmistumispäivä tähän soluun"]
[null,"Työn laajuus"]
[null,"Projektin työn laajuus tulee tähän. Kirjoita kaikki haluamasi tiedot. \n\nEsimerkkiteksti: Tämä on malliprojekti suurien portaiden rakentamisesta. Kehyksen rakentamiseen käytetään vain 2x4 ja 2x8 kokoista puutavaraa sekä palkkikiinnikkeitä. Portaat leikataan 2x4 kokoisesta materiaalista. Käytetään vähintään 5 cm:n mittaisia ruuveja.  Kaikki naulat ovat vähintään 7 cm. Suunnitellun painon on kestettävä vähintään 200 kiloa porrasta kohden. Portaat ovat samalla tasolla kuin talo. Taloon kiinnitetään apuporras. Urakoitsija hoitaa siivoamisen."]
[null,"Ei sisällä"]
[null,"Tähän tulevat projektin tiedot, jotka eivät sisälly projektiin. Kirjoita kaikki, mitä tähän tarjoukseen ei sisälly. \n\nEsimerkkiteksti: Kaiteita ei asenneta. Omistaja valmistelee maan. Omistaja maalaa portaat."]
[null,"Yrityksen ehdotus"]
[null,"Yrityksen ehdotus tulee tähän. Kirjoita tarjouksesta tiivistelmä, joka sisältää tiedon siitä, kenen tarjous on, suunniteltu valmistumispäivä sekä tarjouksen hinta.\n\nEsimerkkiteksti: Me, yrityksen nimi, ehdotamme edellä mainittua työmäärää, joka suoritetaan Valmistumispäivään mennessä hintaan Kokonaissumma."]
[]
[null,"Lähettänyt (yrityksen edustaja)",null,null,"Päivämäärä"]
[null,"Omistajan hyväksyntä"]
[null,"Omistajan hyväksyntä tulee tähän. Kirjoita omistajan nimi vahvistustoteamaan, joka sisältää valmistumispäivän ja yrityksen tarjouksessa ilmoitetun summan. \n\nEsimerkkiteksti: Minä, omistajan nimi, hyväksyn edellä mainitun työmäärän, joka ehdotetaan suoritettavaksi Valmistumispäivään mennessä hintaan Kokonaissumma."]
[]
[null,"Lähettänyt (kodin omistaja tai valtuutettu edustaja)",null,null,"Päivämäärä"]

{"sheet":"Kaaviotiedot","index":1,"n_rows":7,"n_cols":3,"rows_kept":7,"hidden":true}
[]
[null,null,"Yhteensä"]
[null,{"$f":"INDEX(Tarjoustarvikkeet[#Data],MATCH(1,Tarjoustarvikkeet[Luokitellut kustannukset],0),2)","v":"Työntekijämaksu"},{"$f":"INDEX(Tarjoustarvikkeet[#Data],MATCH(1,Tarjoustarvikkeet[Luokitellut kustannukset],0),4)","v":200}]
[null,{"$f":"INDEX(Tarjoustarvikkeet[#Data],MATCH(2,Tarjoustarvikkeet[Luokitellut kustannukset],0),2)","v":"2x4x10 puutavara"},{"$f":"INDEX(Tarjoustarvikkeet[#Data],MATCH(2,Tarjoustarvikkeet[Luokitellut kustannukset],0),4)","v":99.39999999999999}]
[null,{"$f":"INDEX(Tarjoustarvikkeet[#Data],MATCH(3,Tarjoustarvikkeet[Luokitellut kustannukset],0),2)","v":"Palkkikiinnikkeet"},{"$f":"INDEX(Tarjoustarvikkeet[#Data],MATCH(3,Tarjoustarvikkeet[Luokitellut kustannukset],0),4)","v":74.7}]
[null,{"$f":"INDEX(Tarjoustarvikkeet[#Data],MATCH(4,Tarjoustarvikkeet[Luokitellut kustannukset],0),2)","v":"2x8x10 puutavara"},{"$f":"INDEX(Tarjoustarvikkeet[#Data],MATCH(4,Tarjoustarvikkeet[Luokitellut kustannukset],0),4)","v":33.75}]
[null,{"$f":"INDEX(Tarjoustarvikkeet[#Data],MATCH(5,Tarjoustarvikkeet[Luokitellut kustannukset],0),2)","v":"Käsineet, nahkaa"},{"$f":"INDEX(Tarjoustarvikkeet[#Data],MATCH(5,Tarjoustarvikkeet[Luokitellut kustannukset],0),4)","v":15.5}]

{"sheet":"Kustannusten erittely","index":2,"n_rows":14,"n_cols":6,"rows_kept":14,"merged":[[0,1,0,4],[1,1,1,4]]}
[null,"Kustannusten erittely",{"$nulls":3}," "]
[null,"Luettelo materiaaleista ja kustannuksista"]
[null,"Lkm.","Kuvaus","Kustannukset","Yhteensä","Luokitellut kustannukset"]
[null,5,"2x8x10 puutavara",{"v":6.75,"d":"6.75 €"},{"$f":"IFERROR(Tarjoustarvikkeet[[#This Row],[Kustannukset]]*Tarjoustarvikkeet[[#This Row],[Lkm.]], \"\")","v":{"v":33.75,"d":"33.75 €"}},{"$f":"_xlfn.RANK.EQ(Tarjoustarvikkeet[[#This Row],[Yhteensä]],Tarjoustarvikkeet[Yhteensä])","v":4}]
[null,20,"2x4x10 puutavara",{"v":4.97,"d":"4.97 €"},{"$f":"IFERROR(Tarjoustarvikkeet[[#This Row],[Kustannukset]]*Tarjoustarvikkeet[[#This Row],[Lkm.]], \"\")","v":{"v":99.39999999999999,"d":"99.40 €"}},{"$f":"_xlfn.RANK.EQ(Tarjoustarvikkeet[[#This Row],[Yhteensä]],Tarjoustarvikkeet[Yhteensä])","v":2}]
[null,30,"Palkkikiinnikkeet",{"v":2.49,"d":"2.49 €"},{"$f":"IFERROR(Tarjoustarvikkeet[[#This Row],[Kustannukset]]*Tarjoustarvikkeet[[#This Row],[Lkm.]], \"\")","v":{"v":74.7,"d":"74.70 €"}},{"$f":"_xlfn.RANK.EQ(Tarjoustarvikkeet[[#This Row],[Yhteensä]],Tarjoustarvikkeet[Yhteensä])","v":3}]
[null,2,"Laatikko ruuveja, 5 cm",{"v":6.67,"d":"6.67 €"},{"$f":"IFERROR(Tarjoustarvikkeet[[#This Row],[Kustannukset]]*Tarjoustarvikkeet[[#This Row],[Lkm.]], \"\")","v":{"v":13.34,"d":"13.34 €"}},{"$f":"_xlfn.RANK.EQ(Tarjoustarvikkeet[[#This Row],[Yhteensä]],Tarjoustarvikkeet[Yhteensä])","v":6}]
[null,2,"Laatikko nauloja, 7 cm",{"v":3.25,"d":"3.25 €"},{"$f":"IFERROR(Tarjoustarvikkeet[[#This Row],[Kustannukset]]*Tarjoustarvikkeet[[#This Row],[Lkm.]], \"\")","v":{"v":6.5,"d":"6.50 €"}},{"$f":"_xlfn.RANK.EQ(Tarjoustarvikkeet[[#This Row],[Yhteensä]],Tarjoustarvikkeet[Yhteensä])","v":7}]
[null,2,"Käsineet, nahkaa",{"v":7.75,"d":"7.75 €"},{"$f":"IFERROR(Tarjoustarvikkeet[[#This Row],[Kustannukset]]*Tarjoustarvikkeet[[#This Row],[Lkm.]], \"\")","v":{"v":15.5,"d":"15.50 €"}},{"$f":"_xlfn.RANK.EQ(Tarjoustarvikkeet[[#This Row],[Yhteensä]],Tarjoustarvikkeet[Yhteensä])","v":5}]
[null,2,"Työntekijämaksu",{"v":100,"d":"100.00 €"},{"$f":"IFERROR(Tarjoustarvikkeet[[#This Row],[Kustannukset]]*Tarjoustarvikkeet[[#This Row],[Lkm.]], \"\")","v":{"v":200,"d":"200.00 €"}},{"$f":"_xlfn.RANK.EQ(Tarjoustarvikkeet[[#This Row],[Yhteensä]],Tarjoustarvikkeet[Yhteensä])","v":1}]
[4,null,null,"Välisumma",{"$f":"SUBTOTAL(109,Tarjoustarvikkeet[Yhteensä])","v":{"v":443.18999999999994,"d":"443.19 €"}}]
[5,null,null,"Veroprosentti",{"v":0.075,"d":"7.50%"}]
[{"$nulls":3},"Vero",{"$f":"IFERROR(Veroprosentti*Tarjoustarvikkeet[[#Totals],[Yhteensä]], \"\")","v":{"v":33.23924999999999,"d":"33.24 €"}}]
[{"$nulls":3},"Kokonaissumma",{"$f":"IFERROR(Vero+Tarjoustarvikkeet[[#Totals],[Yhteensä]], \"\")","v":{"v":476.4292499999999,"d":"476.43 €"}}]

{"sheet":"Tarjouskustannusten yhteenveto","index":3,"n_rows":3,"n_cols":4,"rows_kept":3}
[null,"Tarjouskustannusten yhteenveto"]
[null,"Materiaalien ja kustannusten erittely",null,"Muistiinpanot"]
[null,"Ympyräkaavio, joka näyttää viisi tärkeintä kustannusta materiaalia kohden. Tiedot perustuvat Kustannuserittely-laskentataulukon Tarjoustarvikkeet-taulukkoon",null,"Kirjoita muistiinpanot tähän soluun."]